fUSD/lending_fUSD_20250807
["ID","MTS","AMOUNT","RATE_DAILY","PERIOD"]
[377833822,1754571047436,-400.0,0.00019976,2]
[377833824,1754571047445,-400.0,0.00019976,2]
[377833826,1754571047454,-1373.07,0.00019976,2]
[377833828,1754571047463,-400.0,0.00019976,2]
[377833830,1754571047472,-2014.99,0.00019976,2]
[377833832,1754571047481,-400.0,0.00019976,2]
[377833834,1754571047490,-400.0,0.00019976,2]
[377833836,1754571047499,-400.0,0.00019976,2]
[377833838,1754571047508,-400.0,0.00019976,2]
[377833840,1754571047517,-506.36,0.00019976,2]
[377833842,1754571047526,-400.0,0.00019976,2]
[377833844,1754571047535,-400.0,0.00019976,2]
[377833846,1754571047544,-400.0,0.00019976,2]
[377833848,1754571047554,-1972.8,0.00019976,2]
[377833850,1754571047563,-625.95,0.00019976,2]
[377833852,1754571047572,-694.15,0.00019976,2]
[377833854,1754571047585,-400.0,0.00019976,2]
[377833856,1754571047596,-400.0,0.00019976,2]
[377833858,1754571047604,-940.84,0.00019976,2]
[377833860,1754571047614,-972.4,0.00019976,2]
[377833862,1754571047623,-2663.13,0.00019976,2]
[377833864,1754571047632,-581.01,0.00019976,2]
[377833865,1754571047642,-400.0,0.00019976,2]
[377833867,1754571047653,-400.0,0.00019976,2]
[377833869,1754571047663,-232.57888906,0.00019976,2]
[377833871,1754571047672,-4334.29,0.00019976,2]
[377833873,1754571047681,-3628.39,0.00019976,2]
[377833875,1754571047690,-400.0,0.00019976,2]
[377833877,1754571047699,-513.2,0.00019976,2]
[377833879,1754571047710,-439.69,0.00019976,2]
[377833881,1754571047720,-1571.5,0.00019976,2]
[377833883,1754571047729,-451.77,0.00019976,2]
[377833885,1754571047739,-1335.64,0.00019976,2]
[377833888,1754571047748,-400.0,0.00019976,2]
[377833890,1754571047758,-400.0,0.00019976,2]
[377833892,1754571047767,-1466.0,0.00019976,2]
[377833894,1754571047777,-403.05708549,0.00019976,2]
[377833896,1754571047786,-1491.65,0.00019976,2]
[377833897,1754571047795,-682.82,0.00019976,2]
[377833899,1754571047804,-1212.55,0.00019976,2]
[377833901,1754571047815,-400.0,0.00019976,2]
[377833904,1754571047825,-1093.41,0.00019976,2]
[377833906,1754571047834,-10170.8,0.00019976,2]
[377833908,1754571047844,-2740.83,0.00019976,2]
[377833910,1754571047853,-400.0,0.00019976,2]
[377833912,1754571047863,-912.17,0.00019976,2]
[377833913,1754571047872,-400.0,0.00019976,2]
[377833916,1754571047882,-642.94,0.00019976,2]
[377833917,1754571047891,-430.61,0.00019976,2]
[377833919,1754571047902,-400.0,0.00019976,2]
[377833921,1754571047911,-400.0,0.00019976,2]
[377833923,1754571047920,-670.32,0.00019976,2]
[377833925,1754571047929,-400.0,0.00019976,2]
[377833927,1754571047939,-1350.28,0.00019976,2]
[377833929,1754571047948,-2286.36,0.00019976,2]
[377833931,1754571047958,-400.0,0.00019976,2]
[377833933,1754571047967,-453.46,0.00019976,2]
[377833935,1754571047976,-712.82,0.00019976,2]
[377833937,1754571047986,-2384.16,0.00019976,2]
[377833939,1754571047995,-790.17,0.00019976,2]
[377833941,1754571048004,-400.0,0.00019976,2]
[377833943,1754571048014,-745.06,0.00019976,2]
[377833945,1754571048023,-596.91,0.00019976,2]
[377833947,1754571048032,-1563.14,0.00019976,2]
[377833949,1754571048042,-1629.55,0.00019976,2]
[377833951,1754571048051,-1076.68,0.00019976,2]
[377833953,1754571048061,-425.70854203,0.00019976,2]
[377833955,1754571048071,-1501.83,0.00019976,2]
[377833957,1754571048080,-400.0,0.00019976,2]
[377833959,1754571048090,-1251.97,0.00019976,2]
[377833961,1754571048100,-151.0,0.00019976,2]
[377833963,1754571048110,-153.253752,0.00019976,2]
[377833965,1754571048120,-704.26,0.00019976,2]
[377833967,1754571048129,-1911.42,0.00019976,2]
[377833969,1754571048138,-400.0,0.00019976,2]
[377833971,1754571048148,-400.0,0.00019976,2]
[377833973,1754571048158,-677.08,0.00019976,2]
[377833975,1754571048169,-400.0,0.00019976,2]
[377833977,1754571048179,-535.93,0.00019976,2]
[377833978,1754571048190,-2093.24,0.00019976,2]
[377833980,1754571048200,-454.26,0.00019976,2]
[377833983,1754571048210,-400.0,0.00019976,2]
[377833985,1754571048220,-1797.1,0.00019976,2]
[377833987,1754571048229,-400.0,0.00019976,2]
[377833989,1754571048239,-308.8170658,0.00019976,2]
[377833991,1754571048248,-400.0,0.00019976,2]
[377833992,1754571048258,-1007.75,0.00019976,2]
[377833994,1754571048267,-400.0,0.00019976,2]
[377833996,1754571048276,-653.02,0.00019976,2]
[377833998,1754571048286,-653.02,0.00019976,2]
[377834000,1754571048296,-400.0,0.00019976,2]
[377834002,1754571048306,-2056.78,0.00019976,2]
[377834004,1754571048315,-1438.14,0.00019976,2]
[377834007,1754571048327,-400.0,0.00019976,2]
[377834009,1754571048337,-482.88,0.00019976,2]
[377834010,1754571048346,-1600.94,0.00019976,2]
[377834012,1754571048356,-2652.31,0.00019976,2]
[377834014,1754571048365,-404.9,0.00019976,2]
[377834017,1754571048375,-400.0,0.00019976,2]
[377834018,1754571048385,-400.0,0.00019976,2]
[377834020,1754571048395,-400.0,0.00019976,2]
[377834023,1754571048405,-965.53,0.00019976,2]
[377834025,1754571048414,-791.97,0.00019976,2]
[377834026,1754571048424,-1950.88,0.00019976,2]
[377834027,1754571048433,-1380.11,0.00019976,2]
[377834028,1754571048442,-400.0,0.00019976,2]
[377834029,1754571048451,-400.0,0.00019976,2]
[377834030,1754571048459,-400.0,0.00019976,2]
[377834031,1754571048468,-151.0,0.00019976,2]
[377834032,1754571048477,-400.0,0.00019976,2]
[377834033,1754571048487,-1362.22,0.00019976,2]
[377834034,1754571048496,-400.0,0.00019976,2]
[377834035,1754571048505,-1044.33,0.00019976,2]
[377834036,1754571048514,-1582.47,0.00019976,2]
[377834037,1754571048523,-782.65,0.00019976,2]
[377834039,1754571048532,-1545.92,0.00019976,2]
[377834041,1754571048541,-400.0,0.00019976,2]
[377834043,1754571048551,-400.0,0.00019976,2]
[377834045,1754571048560,-151.0,0.00019976,2]
[377834047,1754571048570,-400.0,0.00019976,2]
[377834049,1754571048581,-400.0,0.00019976,2]
[377834051,1754571048594,-400.0,0.00019976,2]
[377834053,1754571048604,-400.0,0.00019976,2]
[377834055,1754571048614,-696.77,0.00019976,2]
[377834057,1754571048625,-400.0,0.00019976,2]
[377834059,1754571048634,-3305.66,0.00019976,2]
[377834061,1754571048644,-400.0,0.00019976,2]
[377834063,1754571048653,-2054.96,0.00019976,2]
[377834064,1754571048663,-400.0,0.00019976,2]
[377834066,1754571048674,-890.46,0.00019976,2]
[377834068,1754571048683,-1249.93,0.00019976,2]
[377834070,1754571048693,-400.0,0.00019976,2]
[377834072,1754571048703,-1073.86,0.00019976,2]
[377834074,1754571048715,-596.04,0.00019976,2]
[377834076,1754571048725,-400.0,0.00019976,2]
[377834078,1754571048734,-630.41,0.00019976,2]
[377834080,1754571048744,-151.0,0.00019976,2]
[377834082,1754571048754,-479.6186851,0.00019976,2]
[377834084,1754571048764,-488.17,0.00019976,2]
[377834086,1754571048774,-400.0,0.00019976,2]
[377834088,1754571048784,-400.0,0.00019976,2]
[377834090,1754571048794,-400.0,0.00019976,2]
[377834092,1754571048804,-400.0,0.00019976,2]
[377834094,1754571048814,-3406.22018559,0.00019976,2]
[377837968,1754571274674,269.81625,0.00017933,2]
[377837969,1754571279667,269.81625,0.00017966,2]
[377837970,1754571284292,95.14489049,0.00018,2]
[377837971,1754571284314,174.67135951,0.00018,2]
[377837975,1754571379316,269.81625,0.00017933,2]
[377837976,1754571401990,1533.9355792,0.00017933,2]
[377837979,1754571429567,175.0,0.00018909,7]
[377837993,1754571721621,160.65436595,0.00018,5]
[377837995,1754571738083,524.0,0.00017133,2]
[377837997,1754571765688,150.0,0.000176,2]
[377838001,1754571808947,211.66,0.00013699,2]
[377838010,1754571926078,150.0,0.00017975,2]
[377838011,1754571976747,513.0,0.00017133,2]
[377838013,1754572043627,401.41,0.00015068,2]
[377838014,1754572043848,401.41,0.00016702,2]
[377838022,1754572232631,-291.1267,0.00018033,2]
[377838023,1754572232641,-250.0,0.00018033,2]
[377838024,1754572232650,-401.41,0.00018336,2]
[377838025,1754572232661,-161.39,0.00018692,2]
[377838026,1754572232670,-1000.0,0.00018712,2]
[377838027,1754572232680,-160.2,0.00018712,2]
[377838028,1754572232690,-401.82,0.00018719,2]
[377838029,1754572232700,-166.08,0.00018729,2]
[377838030,1754572232710,-168.86,0.0001873,2]
[377838031,1754572232719,-150.0,0.0001878,2]
[377838032,1754572232728,-200.0,0.00018975,2]
[377838033,1754572232738,-329.74537788,0.00018975,2]
[377838034,1754572232748,-1200.0,0.00018978,2]
[377838035,1754572232758,-850.0,0.00018979,2]
[377838036,1754572232767,-500.0,0.0001898,2]
[377838037,1754572232776,-500.0,0.0001898,2]
[377838038,1754572232786,-160.0,0.0001898,2]
[377838039,1754572232795,-220.15712002,0.0001898,2]
[377838040,1754572232838,-279.84287998,0.0001898,2]
[377838041,1754572232847,-416.03518578,0.0001898,2]
[377838042,1754572232857,-499.97321343,0.0001898,2]
[377838043,1754572232867,-523.026559,0.0001898,2]
[377838044,1754572233083,-332.59358378,0.0001898,2]
[377838045,1754572233098,-2227.92524837,0.0001898,2]
[377838050,1754572233172,-1355.96492574,0.0001898,2]
[377838077,1754572237914,-56.6447573,0.0001898,2]
[377838078,1754572237923,-277.35679052,0.0001898,2]
[377838079,1754572237933,-389.00283266,0.00019013,2]
[377838080,1754572237951,-210.99716734,0.00019013,2]
[377838081,1754572237960,-2086.92325986,0.00019035,2]
[377838082,1754572237971,-2575.58955208,0.00019035,2]
[377838083,1754572237983,-1054.69069838,0.0001909,2]
[377838084,1754572237992,-151.0,0.00019178,2]
[377838085,1754572238001,-163.65,0.00019178,2]
[377838086,1754572238012,-166.51,0.00019364,2]
[377838087,1754572238022,-263.0,0.00019452,2]
[377838088,1754572238032,-151.27471094,0.00019716,2]
[377838089,1754572238042,-1035.94666575,0.00019721,2]
[377838090,1754572238052,-156.587,0.00019726,2]
[377838091,1754572238062,-150.0,0.00019729,2]
[377838092,1754572238072,-168.0,0.00019747,2]
[377838093,1754572238082,-263.44262098,0.00019748,2]
[377838094,1754572238092,-150.0,0.00019761,2]
[377838095,1754572238101,-695.76945,0.0001978,2]
[377838096,1754572238111,-695.76945,0.0001978,2]
[377838097,1754572238121,-905.60879,0.0001978,2]
[377838098,1754572238131,-905.60878,0.0001979,2]
[377838099,1754572238140,-527.0,0.00019796,2]
[377838100,1754572238151,-150.0,0.00019803,2]
[377838101,1754572238161,-150.0,0.00019811,2]
[377838102,1754572238170,-150.0,0.0001982,2]
[377838103,1754572238180,-250.0,0.00019836,2]
[377838104,1754572238189,-500.0,0.00019836,2]
[377838105,1754572238199,-250.0,0.00019836,2]
[377838106,1754572238208,-500.0,0.00019836,2]
[377838107,1754572238218,-150.0,0.00019836,2]
[377838109,1754572238227,-150.0,0.00019837,2]
[377838111,1754572238237,-695.76945,0.0001984,2]
[377838112,1754572238246,-150.0,0.0001985,2]
[377838113,1754572238256,-1000.0,0.00019859,2]
[377838114,1754572238266,-150.0,0.00019862,2]
[377838116,1754572238275,-3364.47470369,0.00019867,2]
[377838118,1754572238284,-3380.16045266,0.00019867,2]
[377838120,1754572238294,-164.30001578,0.00019867,2]
[377838122,1754572238303,-150.0,0.00019873,2]
[377838124,1754572238313,-150.0,0.00019875,2]
[377838126,1754572238322,-1129.11179973,0.00019876,2]
[377838132,1754572238372,-932.47376441,0.00019876,2]
[377838134,1754572238383,-321.27038267,0.00019876,2]
[377838137,1754572238394,-691.20796414,0.00019876,2]
[377838142,1754572238410,-1925.93608905,0.00019876,2]
[377838144,1754572238419,-176.25550788,0.00019877,2]
[377838146,1754572238428,-150.0,0.00019879,2]
[377838149,1754572238439,-150.0,0.00019888,2]
[377838151,1754572238448,-905.60879,0.0001991,2]
[377838152,1754572238458,-150.0,0.0001991,2]
[377838155,1754572238467,-150.0,0.00019916,2]
[377838157,1754572238476,-150.0,0.00019929,2]
[377838159,1754572238486,-150.0,0.00019933,2]
[377838160,1754572238495,-150.0,0.00019952,2]
[377838162,1754572238504,-4715.85246005,0.00019952,2]
[377838164,1754572238513,-256.29,0.00019957,2]
[377838166,1754572238522,-3364.47470363,0.00019959,2]
[377838168,1754572238531,-3380.16045262,0.00019959,2]
[377838170,1754572238541,-157.76883189,0.00019961,2]
[377838172,1754572238550,-150.0,0.00019961,2]
[377838174,1754572238559,-1110.064,0.00019962,2]
[377838176,1754572238569,-150.0,0.00019965,2]
[377838178,1754572238578,-500.0,0.00019966,2]
[377838180,1754572238588,-452.81943577,0.00019966,2]
[377838182,1754572238597,-500.0,0.00019966,2]
[377838184,1754572238606,-500.0,0.00019966,2]
[377838186,1754572238617,-500.0,0.00019966,2]
[377838188,1754572238627,-500.0,0.00019966,2]
[377838190,1754572238636,-500.0,0.00019966,2]
[377838192,1754572238645,-285.68055931,0.00019966,2]
[377838194,1754572238654,-912.05,0.00019966,2]
[377838196,1754572238664,-400.0,0.00019966,2]
[377838198,1754572238673,-400.0,0.00019966,2]
[377838200,1754572238682,-2773.68,0.00019966,2]
[377838202,1754572238691,-401.84148581,0.00019966,2]
[377838204,1754572238701,-400.0,0.00019966,2]
[377838206,1754572238710,-2210.17,0.00019966,2]
[377838208,1754572238720,-400.0,0.00019966,2]
[377838210,1754572238729,-400.0,0.00019966,2]
[377838212,1754572238739,-2415.6,0.00019966,2]
[377838214,1754572238749,-400.0,0.00019966,2]
[377838216,1754572238760,-260.4957041,0.00019966,2]
[377838218,1754572238770,-279.15807369,0.00019966,2]
[377838220,1754572238782,-386.31386255,0.00019966,2]
[377838222,1754572238791,-553.84015502,0.00019966,2]
[377838224,1754572238800,-194.41044398,0.00019966,2]
[377838225,1754572238809,-400.0,0.00019966,2]
[377838227,1754572238819,-1431.92,0.00019966,2]
[377838229,1754572238828,-1247.41,0.00019966,2]
[377838231,1754572238838,-400.0,0.00019966,2]
[377838234,1754572238847,-1819.55,0.00019966,2]
[377838236,1754572238857,-1439.28,0.00019966,2]
[377838237,1754572238867,-400.0,0.00019966,2]
[377838239,1754572238876,-1901.99,0.00019966,2]
[377838258,1754572239038,-400.0,0.00019966,2]
[377838260,1754572239047,-400.0,0.00019966,2]
[377838262,1754572239057,-401.976006,0.00019966,2]
[377838263,1754572239067,-400.0,0.00019966,2]
[377838266,1754572239077,-1000.0,0.00019966,2]
[377838268,1754572239087,-2353.73,0.00019966,2]
[377838270,1754572239096,-1925.15,0.00019966,2]
[377838272,1754572239106,-3317.04589296,0.00019966,2]
[377838274,1754572239119,-602.17410704,0.00019966,2]
[377838276,1754572239129,-1751.41,0.00019966,2]
[377838278,1754572239139,-608.89,0.00019966,2]
[377838280,1754572239150,-2050.73,0.00019966,2]
[377838282,1754572239160,-2767.8424306,0.00019966,2]
[377838373,1754572240129,-42.4475694,0.00019966,2]
[377838375,1754572240140,-400.0,0.00019966,2]
[377838377,1754572240151,-400.0,0.00019966,2]
[377838379,1754572240163,-400.0,0.00019966,2]
[377838381,1754572240173,-1318.48,0.00019966,2]
[377838383,1754572240184,-897.76,0.00019966,2]
[377838385,1754572240194,-1076.41,0.00019966,2]
[377838387,1754572240203,-951.74,0.00019966,2]
[377838389,1754572240212,-1695.6,0.00019966,2]
[377838391,1754572240221,-1266.74,0.00019966,2]
[377838393,1754572240231,-400.0,0.00019966,2]
[377838395,1754572240240,-400.0,0.00019967,2]
[377838397,1754572240250,-400.0,0.00019967,2]
[377838399,1754572240259,-400.0,0.00019967,2]
[377838401,1754572240269,-227.04578262,0.00019967,2]
[377838402,1754572240278,-400.0,0.00019967,2]
[377838405,1754572240288,-400.0,0.00019967,2]
[377838406,1754572240298,-400.0,0.00019967,2]
[377838408,1754572240307,-400.0,0.00019967,2]
[377838410,1754572240317,-211.58007735,0.00019967,2]
[377838412,1754572240326,-400.0,0.00019967,2]
[377838415,1754572240337,-935.67,0.00019967,2]
[377838417,1754572240347,-541.91,0.00019967,2]
[377838419,1754572240357,-432.61,0.00019967,2]
[377838421,1754572240367,-400.0,0.00019967,2]
[377838422,1754572240377,-518.34,0.00019967,2]
[377838425,1754572240387,-400.0,0.00019967,2]
[377838427,1754572240396,-400.0,0.00019967,2]
[377838429,1754572240406,-400.0,0.00019967,2]
[377838431,1754572240416,-400.0,0.00019967,2]
[377838432,1754572240425,-400.0,0.00019967,2]
[377838435,1754572240434,-457.04,0.00019967,2]
[377838436,1754572240443,-500.0,0.00019967,2]
[377838438,1754572240452,-400.0,0.00019967,2]
[377838440,1754572240462,-532.2,0.00019967,2]
[377838442,1754572240471,-495.7,0.00019967,2]
[377838445,1754572240484,-400.0,0.00019967,2]
[377838447,1754572240493,-679.32,0.00019967,2]
[377838449,1754572240502,-882.97,0.00019967,2]
[377838451,1754572240511,-400.0,0.00019967,2]
[377838453,1754572240520,-497.39894308,0.00019967,2]
[377838454,1754572240530,-400.0,0.00019967,2]
[377838457,1754572240539,-495.25,0.00019967,2]
[377838458,1754572240552,-560.64,0.00019967,2]
[377838460,1754572240561,-1303.31,0.00019967,2]
[377838462,1754572240571,-840.27,0.00019967,2]
[377838465,1754572240580,-400.0,0.00019967,2]
[377838466,1754572240590,-1560.22,0.00019967,2]
[377838468,1754572240599,-400.0,0.00019967,2]
[377838470,1754572240609,-400.0,0.00019967,2]
[377838472,1754572240619,-726.79,0.00019967,2]
[377838474,1754572240628,-400.0,0.00019967,2]
[377838476,1754572240637,-760.3,0.00019967,2]
[377838478,1754572240647,-523.8,0.00019967,2]
[377838480,1754572240657,-417.54,0.00019967,2]
[377838482,1754572240666,-400.0,0.00019967,2]
[377838485,1754572240677,-400.0,0.00019967,2]
[377838486,1754572240686,-400.0,0.00019967,2]
[377838488,1754572240696,-400.0,0.00019967,2]
[377838491,1754572240706,-400.0,0.00019967,2]
[377838493,1754572240715,-400.0,0.00019967,2]
[377838494,1754572240725,-400.0,0.00019967,2]
[377838496,1754572240734,-1662.17,0.00019967,2]
[377838498,1754572240744,-400.0,0.00019967,2]
[377838500,1754572240753,-400.0,0.00019967,2]
[377838502,1754572240763,-824.28,0.00019967,2]
[377838504,1754572240772,-400.0,0.00019967,2]
[377838506,1754572240782,-515.64,0.00019967,2]
[377838508,1754572240791,-407.32,0.00019967,2]
[377838510,1754572240801,-400.0,0.00019967,2]
[377838512,1754572240811,-400.0,0.00019967,2]
[377838515,1754572240821,-1078.67,0.00019967,2]
[377838516,1754572240830,-400.0,0.00019967,2]
[377838518,1754572240840,-495.01,0.00019967,2]
[377838520,1754572240849,-400.0,0.00019967,2]
[377838522,1754572240858,-677.22,0.00019967,2]
[377838524,1754572240867,-1499.82,0.00019967,2]
[377838526,1754572240876,-400.0,0.00019967,2]
[377838528,1754572240886,-1224.67,0.00019967,2]
[377838530,1754572240896,-501.85,0.00019967,2]
[377838532,1754572240905,-164.12201232,0.00019967,2]
[377838534,1754572240914,-400.0,0.00019967,2]
[377838536,1754572240923,-665.23,0.00019967,2]
[377838538,1754572240933,-400.0,0.00019967,2]
[377838540,1754572240946,-408.01,0.00019967,2]
[377838542,1754572240955,-599.87,0.00019967,2]
[377838545,1754572240966,-463.06206582,0.00019967,2]
[377838547,1754572240976,-400.0,0.00019967,2]
[377838549,1754572240985,-1237.55,0.00019967,2]
[377838551,1754572240995,-400.0,0.00019967,2]
[377838553,1754572241004,-1511.24,0.00019967,2]
[377838555,1754572241015,-1394.86,0.00019967,2]
[377838557,1754572241025,-1190.35,0.00019967,2]
[377838559,1754572241035,-400.0,0.00019967,2]
[377838561,1754572241045,-556.8,0.00019967,2]
[377838563,1754572241054,-400.0,0.00019967,2]
[377838565,1754572241064,-150.02771833,0.00019967,2]
[377838567,1754572241073,-1433.45,0.00019967,2]
[377838569,1754572241083,-802.41,0.00019967,2]
[377838571,1754572241093,-931.89,0.00019967,2]
[377838573,1754572241102,-400.0,0.00019967,2]
[377838575,1754572241111,-21.57677466,0.00019967,2]
[377838579,1754572241140,-378.42322534,0.00019967,2]
[377838581,1754572241151,-400.0,0.00019967,2]
[377838583,1754572241161,-400.0,0.00019967,2]
[377838585,1754572241171,-1162.02,0.00019967,2]
[377838587,1754572241180,-365.60646008,0.00019967,2]
[377838589,1754572241192,-34.39353992,0.00019967,2]
[377838591,1754572241202,-1211.77,0.00019967,2]
[377838593,1754572241211,-1554.99,0.00019967,2]
[377838595,1754572241220,-662.15,0.00019967,2]
[377838597,1754572241230,-400.0,0.00019967,2]
[377838599,1754572241239,-918.53,0.00019967,2]
[377838601,1754572241249,-400.0,0.00019967,2]
[377838603,1754572241258,-1663.08,0.00019967,2]
[377838605,1754572241268,-400.0,0.00019967,2]
[377838607,1754572241277,-1022.66,0.00019967,2]
[377838609,1754572241286,-491.82,0.00019967,2]
[377838611,1754572241296,-400.0,0.00019967,2]
[377838613,1754572241305,-616.15,0.00019967,2]
[377838615,1754572241315,-400.0,0.00019967,2]
[377838617,1754572241324,-1047.85,0.00019967,2]
[377838619,1754572241333,-400.0,0.00019967,2]
[377838621,1754572241343,-648.87,0.00019967,2]
[377838623,1754572241352,-2069.54,0.00019967,2]
[377838625,1754572241362,-400.0,0.00019967,2]
[377838627,1754572241373,-400.0,0.00019967,2]
[377838629,1754572241382,-400.0,0.00019967,2]
[377838631,1754572241392,-434.57,0.00019967,2]
[377838633,1754572241401,-1783.31,0.00019967,2]
[377838635,1754572241410,-1561.65,0.00019967,2]
[377838637,1754572241420,-400.0,0.00019967,2]
[377838639,1754572241429,-400.0,0.00019967,2]
[377838641,1754572241439,-1031.82,0.00019967,2]
[377838643,1754572241450,-400.0,0.00019967,2]
[377838645,1754572241460,-400.0,0.00019967,2]
[377838647,1754572241469,-400.0,0.00019967,2]
[377838649,1754572241479,-747.92,0.00019967,2]
[377838651,1754572241489,-674.91,0.00019967,2]
[377838653,1754572241499,-1932.03,0.00019967,2]
[377838655,1754572241508,-1680.45,0.00019967,2]
[377838657,1754572241518,-400.0,0.00019967,2]
[377838659,1754572241527,-400.69085576,0.00019967,2]
[377838661,1754572241536,-1305.46,0.00019967,2]
[377838663,1754572241546,-1900.5,0.00019967,2]
[377838665,1754572241555,-598.6,0.00019967,2]
[377838667,1754572241564,-400.0,0.00019967,2]
[377838668,1754572241574,-400.0,0.00019967,2]
[377838670,1754572241583,-400.0,0.00019967,2]
[377838672,1754572241594,-400.0,0.00019967,2]
[377838674,1754572241603,-400.0,0.00019967,2]
[377838675,1754572241613,-400.0,0.00019967,2]
[377838677,1754572241624,-740.21,0.00019967,2]
[377838679,1754572241633,-1046.31,0.00019967,2]
[377838681,1754572241643,-400.0,0.00019967,2]
[377838683,1754572241653,-462.76,0.00019967,2]
[377838685,1754572241662,-1304.54,0.00019967,2]
[377838686,1754572241671,-400.0,0.00019967,2]
[377838688,1754572241682,-400.0,0.00019967,2]
[377838690,1754572241692,-400.0,0.00019967,2]
[377838692,1754572241701,-1000.81,0.00019967,2]
[377838694,1754572241711,-400.0,0.00019967,2]
[377838695,1754572241720,-190.51895609,0.00019967,2]
[377838697,1754572241730,-1302.98,0.00019967,2]
[377838699,1754572241740,-400.0,0.00019967,2]
[377838701,1754572241750,-441.89,0.00019967,2]
[377838703,1754572241760,-400.0,0.00019967,2]
[377838705,1754572241769,-1549.82,0.00019967,2]
[377838706,1754572241779,-400.0,0.00019967,2]
[377838708,1754572241788,-1197.85,0.00019967,2]
[377838710,1754572241798,-1470.92,0.00019967,2]
[377838712,1754572241807,-400.0,0.00019967,2]
[377838714,1754572241819,-400.0,0.00019967,2]
[377838716,1754572241829,-400.0,0.00019967,2]
[377838717,1754572241839,-400.0,0.00019967,2]
[377838719,1754572241848,-769.89,0.00019967,2]
[377838721,1754572241859,-400.0,0.00019967,2]
[377838723,1754572241869,-604.14,0.00019967,2]
[377838725,1754572241878,-400.0,0.00019967,2]
[377838727,1754572241888,-758.97,0.00019967,2]
[377838729,1754572241897,-647.47,0.00019967,2]
[377838730,1754572241906,-400.0,0.00019967,2]
[377838732,1754572241915,-518.03,0.00019967,2]
[377838734,1754572241925,-1831.8,0.00019967,2]
[377838736,1754572241936,-400.0,0.00019967,2]
[377838738,1754572241948,-400.0,0.00019967,2]
[377838739,1754572241957,-400.0,0.00019967,2]
[377838741,1754572241967,-400.0,0.00019967,2]
[377838743,1754572241976,-151.0,0.00019967,2]
[377838745,1754572241987,-151.0,0.00019967,2]
[377838747,1754572241996,-1627.16,0.00019967,2]
[377838749,1754572242006,-400.0,0.00019967,2]
[377838751,1754572242016,-420.23,0.00019967,2]
[377838753,1754572242025,-356.26543853,0.00019967,2]
[377838864,1754572243194,-43.73456147,0.00019967,2]
[377838866,1754572243204,-400.0,0.00019967,2]
[377838868,1754572243213,-400.0,0.00019967,2]
[377838870,1754572243227,-153.920482,0.00019967,2]
[377838872,1754572243236,-1477.22,0.00019967,2]
[377838874,1754572243249,-1365.71,0.00019967,2]
[377838876,1754572243265,-400.0,0.00019967,2]
[377838878,1754572243275,-1167.54,0.00019967,2]
[377838880,1754572243284,-400.0,0.00019967,2]
[377838881,1754572243293,-1149.95,0.00019967,2]
[377838883,1754572243303,-451.68,0.00019967,2]
[377838885,1754572243312,-233.29120186,0.00019967,2]
[377838887,1754572243324,-385.9323798,0.00019967,2]
[377838889,1754572243336,-234.13641834,0.00019967,2]